[Event "MČR juniorů a juniorek v rapid šachu 2023"]
[Site "Czech Republic"]
[Date "2023.09.23"]
[Round "4.8"]
[White "Bezdek, Tomas"]
[Black "Stastna, Martina"]
[Result "1-0"]
[TimeControl "20 min + 5 sec per move"]
[WhiteFideId "23733551"]
[BlackFideId "385123"]
[WhiteElo "1933"]
[BlackElo "1725"]

1. d4 {[%clk 00:20:09]} d5 {[%clk 00:19:49]} {[%emt 00:00:21]} 2. Nc3 {[%clk
00:20:11]} {[%emt 00:00:03]} Nf6 {[%clk 00:19:29]} {[%emt 00:00:26]} 3. Bf4
{[%clk 00:20:13]} {[%emt 00:00:03]} a6 {[%clk 00:18:59]} {[%emt 00:00:35]} 4.
e3 {[%clk 00:20:01]} {[%emt 00:00:17]} e6 {[%clk 00:18:47]} {[%emt 00:00:17]} 5.
Nf3 {[%clk 00:19:11]} {[%emt 00:00:54]} c5 {[%clk 00:17:56]} {[%emt 00:00:56]}
6. Be2 {[%clk 00:18:57]} {[%emt 00:00:20]} Nc6 {[%clk 00:17:32]} {[%emt
00:00:29]} 7. O-O {[%clk 00:18:45]} {[%emt 00:00:17]} Be7 {[%clk 00:17:18]}
{[%emt 00:00:18]} 8. h3 {[%clk 00:18:16]} {[%emt 00:00:34]} O-O {[%clk
00:16:41]} {[%emt 00:00:42]} 9. a3 {[%clk 00:17:57]} {[%emt 00:00:24]} b5
{[%clk 00:15:31]} {[%emt 00:01:14]} 10. Na2 {[%clk 00:17:07]} {[%emt 00:00:56]}
Bb7 {[%clk 00:14:22]} {[%emt 00:01:14]} 11. c3 {[%clk 00:17:03]} {[%emt
00:00:09]} Re8 {[%clk 00:13:33]} {[%emt 00:00:55]} 12. Nc1 {[%clk 00:16:46]}
{[%emt 00:00:22]} c4 {[%clk 00:13:02]} {[%emt 00:00:36]} 13. Ne5 {[%clk
00:16:41]} {[%emt 00:00:09]} Bd6 {[%clk 00:12:36]} {[%emt 00:00:32]} 14. Nxc6
{[%emt 00:00:38]} Bxc6 {[%clk 00:12:37]} {[%emt 00:00:02]} 15. Bxd6 {[%clk
00:16:13]} {[%emt 00:00:01]} Qxd6 {[%emt 00:00:02]} 16. f4 {[%emt 00:00:01]}
Ne4 {[%clk 00:10:39]} {[%emt 00:02:06]} 17. Bf3 {[%clk 00:14:49]} {[%emt
00:01:33]} Ng3 {[%clk 00:10:05]} {[%emt 00:00:39]} 18. Rf2 {[%clk 00:14:10]}
{[%emt 00:00:44]} f6 {[%clk 00:09:20]} {[%emt 00:00:51]} 19. Rd2 {[%clk
00:10:51]} {[%emt 00:03:24]} Rad8 {[%clk 00:08:13]} {[%emt 00:01:12]} 20. Qe1
{[%clk 00:10:51]} {[%emt 00:00:06]} Nf5 {[%clk 00:08:06]} {[%emt 00:00:11]} 21.
g4 {[%clk 00:10:39]} {[%emt 00:00:17]} Ne7 {[%clk 00:07:49]} {[%emt 00:00:23]}
22. Ne2 {[%clk 00:09:23]} {[%emt 00:01:20]} Nc8 {[%clk 00:06:43]} {[%emt
00:01:12]} 23. Rad1 {[%clk 00:08:56]} {[%emt 00:00:32]} Nb6 {[%clk 00:06:35]}
{[%emt 00:00:13]} 24. Qh4 {[%clk 00:07:46]} {[%emt 00:01:13]} Qe7 {[%clk
00:05:35]} {[%emt 00:01:06]} 25. Ng3 {[%clk 00:07:26]} {[%emt 00:00:25]} a5
{[%clk 00:04:21]} {[%emt 00:01:20]} 26. Rg2 {[%clk 00:06:56]} {[%emt 00:00:34]}
b4 {[%clk 00:03:50]} {[%emt 00:00:36]} 27. axb4 {[%clk 00:06:36]} {[%emt
00:00:25]} axb4 {[%clk 00:03:54]} {[%emt 00:00:01]} 28. Nh5 {[%clk 00:06:34]}
{[%emt 00:00:07]} bxc3 {[%clk 00:03:00]} {[%emt 00:01:00]} 29. bxc3 {[%clk
00:06:38]} Na4 {[%clk 00:03:04]} 30. g5 {[%clk 00:05:55]} {[%emt 00:00:47]} g6
{[%clk 00:02:19]} {[%emt 00:00:50]} 31. Nxf6+ {[%clk 00:03:49]} {[%emt
00:02:11]} Kh8 {[%clk 00:02:23]} {[%emt 00:00:02]} 32. Qe1 {[%clk 00:03:41]}
{[%emt 00:00:12]} Rf8 {[%clk 00:02:00]} {[%emt 00:00:28]} 33. h4 {[%clk
00:03:26]} {[%emt 00:00:20]} Rb8 {[%clk 00:01:23]} {[%emt 00:00:42]} 34. h5
{[%clk 00:03:11]} {[%emt 00:00:20]} Be8 {[%clk 00:01:21]} {[%emt 00:00:07]} 35.
Rh2 {[%clk 00:02:52]} {[%emt 00:00:24]} Rb2 {[%clk 00:01:10]} {[%emt 00:00:17]}
36. Rdd2 {[%clk 00:01:43]} {[%emt 00:01:14]} Rxd2 {[%clk 00:00:53]} {[%emt
00:00:22]} 37. Qxd2 {[%clk 00:01:47]} Kg7 {[%clk 00:00:38]} {[%emt 00:00:20]}
38. Qc2 {[%clk 00:01:28]} {[%emt 00:00:24]} Bf7 {[%clk 00:00:22]} {[%emt
00:00:21]} 39. hxg6 {[%clk 00:01:22]} {[%emt 00:00:10]} Bxg6 {[%clk 00:00:22]}
{[%emt 00:00:06]} 40. Rxh7+ {[%clk 00:01:23]} {[%emt 00:00:04]} 1-0

[Event "MČR juniorů a juniorek v rapid šachu 2023"]
[Site "Czech Republic"]
[Date "2023.09.23"]
[Round "4.9"]
[White "Rybacek, Martin"]
[Black "Hurtik, Matej"]
[Result "0-1"]
[TimeControl "20 min + 5 sec per move"]
[WhiteFideId "23739266"]
[BlackFideId "397997"]
[WhiteElo "1755"]
[BlackElo "1930"]

1. d4 {[%clk 00:20:07]} {[%emt 00:00:02]} c5 {[%clk 00:19:54]} {[%emt
00:00:16]} 2. Nf3 {[%clk 00:19:51]} {[%emt 00:00:21]} cxd4 {[%clk 00:19:57]}
{[%emt 00:00:02]} 3. Nxd4 {[%clk 00:19:53]} {[%emt 00:00:03]} Nc6 {[%clk
00:19:59]} {[%emt 00:00:02]} 4. c4 {[%clk 00:19:41]} {[%emt 00:00:18]} Nf6
{[%clk 00:20:00]} {[%emt 00:00:04]} 5. g3 {[%clk 00:19:36]} {[%emt 00:00:11]}
g6 {[%clk 00:20:03]} {[%emt 00:00:02]} 6. Bg2 {[%clk 00:19:31]} {[%emt
00:00:09]} Bg7 {[%clk 00:20:06]} {[%emt 00:00:02]} 7. O-O {[%clk 00:19:17]}
{[%emt 00:00:19]} O-O {[%clk 00:20:04]} {[%emt 00:00:04]} 8. Nc3 {[%clk
00:18:33]} {[%emt 00:00:52]} d6 {[%clk 00:19:59]} {[%emt 00:00:09]} 9. Nxc6
{[%clk 00:18:18]} {[%emt 00:00:21]} bxc6 {[%clk 00:20:02]} {[%emt 00:00:03]} 10.
Bxc6 {[%clk 00:17:54]} {[%emt 00:00:29]} Bh3 {[%clk 00:20:04]} {[%emt
00:00:02]} 11. Bg2 {[%clk 00:16:58]} {[%emt 00:01:01]} Bxg2 {[%clk 00:20:07]}
12. Kxg2 {[%clk 00:17:02]} Qc7 {[%clk 00:20:10]} {[%emt 00:00:01]} 13. Qd3
{[%clk 00:15:31]} {[%emt 00:01:37]} Rfc8 {[%clk 00:20:13]} {[%emt 00:00:02]} 14.
b3 {[%clk 00:11:47]} {[%emt 00:03:49]} d5 {[%clk 00:20:15]} {[%emt 00:00:03]}
15. Bb2 {[%clk 00:08:09]} {[%emt 00:03:42]} dxc4 {[%clk 00:20:18]} {[%emt
00:00:02]} 16. bxc4 {[%clk 00:07:49]} {[%emt 00:00:26]} Qb7+ {[%clk 00:20:21]}
17. Kg1 {[%clk 00:06:46]} {[%emt 00:01:09]} Qxb2 {[%clk 00:20:23]} {[%emt
00:00:02]} 18. Rab1 {[%clk 00:06:18]} {[%emt 00:00:33]} Qa3 {[%clk 00:20:26]}
{[%emt 00:00:02]} 19. Rb7 {[%clk 00:05:52]} {[%emt 00:00:31]} Rd8 {[%clk
00:19:49]} {[%emt 00:00:42]} 20. Qf3 {[%clk 00:05:17]} {[%emt 00:00:40]} Rac8
{[%clk 00:19:25]} {[%emt 00:00:29]} 21. Nd5 {[%clk 00:04:29]} {[%emt 00:00:52]}
Qxf3 {[%clk 00:19:27]} {[%emt 00:00:03]} 22. Nxe7+ {[%clk 00:04:33]} {[%emt
00:00:02]} Kf8 {[%clk 00:19:31]} 23. exf3 {[%clk 00:04:37]} {[%emt 00:00:01]}
Rxc4 {[%clk 00:19:35]} {[%emt 00:00:01]} 24. Rxa7 {[%clk 00:04:28]} {[%emt
00:00:15]} Re8 {[%clk 00:18:41]} {[%emt 00:00:58]} 25. Re1 {[%clk 00:04:11]}
{[%emt 00:00:22]} Nd5 {[%clk 00:18:07]} {[%emt 00:00:38]} 26. Nxg6+ {[%clk
00:03:20]} {[%emt 00:00:57]} hxg6 {[%clk 00:18:10]} {[%emt 00:00:02]} 0-1

[Event "MČR juniorů a juniorek v rapid šachu 2023"]
[Site "Czech Republic"]
[Date "2023.09.23"]
[Round "4.10"]
[White "Zadrapa, Jakub"]
[Black "Slaby, Matej"]
[Result "0-1"]
[TimeControl "20 min + 5 sec per move"]
[WhiteFideId "23714778"]
[BlackFideId "23734876"]
[WhiteElo "1696"]
[BlackElo "1922"]

1. e4 {[%clk 00:20:08]} {[%emt 00:00:01]} d5 {[%clk 00:20:09]} {[%emt
00:00:02]} 2. exd5 {[%clk 00:20:11]} {[%emt 00:00:02]} Qxd5 {[%clk 00:20:12]}
{[%emt 00:00:01]} 3. Nc3 {[%clk 00:20:15]} {[%emt 00:00:02]} Qd6 {[%clk
00:20:16]} 4. d4 {[%clk 00:20:17]} {[%emt 00:00:04]} Nf6 {[%clk 00:20:19]}
{[%emt 00:00:02]} 5. Nf3 {[%clk 00:20:16]} {[%emt 00:00:06]} c6 {[%clk
00:20:23]} {[%emt 00:00:01]} 6. h3 {[%clk 00:20:01]} {[%emt 00:00:20]} g6
{[%clk 00:18:35]} {[%emt 00:01:53]} 7. Bd2 {[%clk 00:19:35]} {[%emt 00:00:31]}
Bg7 {[%clk 00:18:27]} {[%emt 00:00:12]} 8. Qe2 {[%clk 00:19:16]} {[%emt
00:00:24]} Na6 {[%clk 00:17:30]} {[%emt 00:01:02]} 9. O-O-O {[%clk 00:18:49]}
{[%emt 00:00:32]} O-O {[%clk 00:16:43]} {[%emt 00:00:53]} 10. Kb1 {[%clk
00:18:11]} {[%emt 00:00:43]} Nb4 {[%clk 00:16:06]} {[%emt 00:00:42]} 11. g4
{[%clk 00:17:43]} {[%emt 00:00:32]} Nbd5 {[%clk 00:15:49]} {[%emt 00:00:22]} 12.
Nxd5 Nxd5 13. Qe4 {[%clk 00:17:05]} Be6 {[%clk 00:14:46]} {[%emt 00:00:02]} 14.
Rg1 {[%clk 00:13:43]} {[%emt 00:03:26]} b5 {[%clk 00:13:34]} {[%emt 00:01:17]}
15. Bg2 {[%clk 00:13:02]} {[%emt 00:00:46]} Rac8 {[%clk 00:09:18]} {[%emt
00:04:21]} 16. Ng5 {[%clk 00:11:56]} {[%emt 00:01:11]} Bd7 {[%clk 00:09:05]}
{[%emt 00:00:18]} 17. f4 {[%clk 00:11:20]} {[%emt 00:00:42]} e6 {[%clk
00:06:48]} {[%emt 00:02:21]} 18. Rgf1 {[%clk 00:08:48]} {[%emt 00:02:36]} c5
{[%clk 00:06:16]} {[%emt 00:00:38]} 19. Qe1 {[%clk 00:06:44]} {[%emt 00:02:09]}
cxd4 {[%clk 00:05:39]} {[%emt 00:00:41]} 20. Qh4 {[%clk 00:04:11]} {[%emt
00:02:39]} h6 {[%clk 00:02:57]} {[%emt 00:02:47]} 21. Ne4 {[%clk 00:04:11]}
{[%emt 00:00:05]} Qc7 {[%clk 00:02:52]} {[%emt 00:00:10]} 22. Rc1 {[%clk
00:04:03]} {[%emt 00:00:13]} f5 {[%clk 00:02:34]} {[%emt 00:00:23]} 23. gxf5
{[%clk 00:03:50]} {[%emt 00:00:17]} exf5 {[%clk 00:02:25]} {[%emt 00:00:15]} 24.
Nf2 {[%clk 00:02:48]} {[%emt 00:01:07]} Be6 {[%clk 00:02:05]} {[%emt 00:00:24]}
25. Nd3 {[%clk 00:02:23]} {[%emt 00:00:30]} Nc3+ {[%clk 00:00:25]} {[%emt
00:01:46]} 26. Bxc3 {[%clk 00:02:22]} {[%emt 00:00:06]} dxc3 {[%clk 00:00:28]}
{[%emt 00:00:03]} 27. b3 {[%clk 00:02:20]} {[%emt 00:00:07]} a5 {[%clk
00:00:14]} {[%emt 00:00:19]} 28. Rfe1 {[%clk 00:02:20]} {[%emt 00:00:04]} Bf7
{[%clk 00:00:14]} {[%emt 00:00:05]} 29. Qe7 {[%clk 00:01:24]} {[%emt 00:01:01]}
a4 {[%clk 00:00:10]} {[%emt 00:00:10]} 30. Qxc7 {[%clk 00:00:59]} {[%emt
00:00:29]} Rxc7 {[%clk 00:00:14]} 31. Ne5 {[%clk 00:00:53]} {[%emt 00:00:11]}
Bxe5 {[%clk 00:00:12]} {[%emt 00:00:07]} 32. Rxe5 {[%clk 00:00:56]} {[%emt
00:00:02]} axb3 {[%clk 00:00:11]} {[%emt 00:00:06]} 33. cxb3 {[%clk 00:00:56]}
{[%emt 00:00:05]} Rb8 {[%clk 00:00:09]} {[%emt 00:00:07]} 34. Rc2 {[%clk
00:00:20]} {[%emt 00:00:40]} Kg7 {[%clk 00:00:09]} {[%emt 00:00:05]} 35. Kc1
{[%clk 00:00:22]} {[%emt 00:00:03]} b4 {[%clk 00:00:09]} {[%emt 00:00:06]} 36.
Re3 {[%clk 00:00:10]} {[%emt 00:00:17]} Ra7 {[%clk 00:00:08]} {[%emt 00:00:06]}
37. Ree2 {[%clk 00:00:10]} {[%emt 00:00:05]} Bxb3 {[%clk 00:00:11]} {[%emt
00:00:03]} 0-1

[Event "MČR juniorů a juniorek v rapid šachu 2023"]
[Site "Czech Republic"]
[Date "2023.09.23"]
[Round "4.11"]
[White "Sulc, Jakub"]
[Black "Havelkova, Beata"]
[Result "1-0"]
[TimeControl "20 min + 5 sec per move"]
[WhiteFideId "394050"]
[BlackFideId "23709405"]
[WhiteElo "1920"]
[BlackElo "1494"]

1. c4 {[%clk 00:20:08]} {[%emt 00:00:01]} Nf6 {[%clk 00:20:09]} 2. g3 {[%clk
00:20:12]} {[%emt 00:00:01]} g6 {[%clk 00:20:13]} 3. Bg2 {[%clk 00:20:16]}
{[%emt 00:00:01]} Bg7 {[%clk 00:20:17]} {[%emt 00:00:01]} 4. Nc3 {[%clk
00:20:20]} O-O {[%clk 00:20:15]} {[%emt 00:00:07]} 5. d3 {[%clk 00:20:24]}
{[%emt 00:00:01]} e6 {[%clk 00:19:57]} {[%emt 00:00:23]} 6. e4 {[%clk
00:20:26]} {[%emt 00:00:03]} d6 {[%clk 00:19:41]} {[%emt 00:00:22]} 7. Nge2
{[%clk 00:20:29]} {[%emt 00:00:01]} Nbd7 {[%clk 00:19:16]} {[%emt 00:00:30]} 8.
O-O {[%clk 00:20:32]} c6 {[%clk 00:19:16]} {[%emt 00:00:08]} 9. h3 {[%clk
00:20:32]} Qc7 {[%clk 00:18:47]} {[%emt 00:00:38]} 10. f4 {[%clk 00:20:34]}
{[%emt 00:00:03]} a6 {[%clk 00:18:15]} {[%emt 00:00:38]} 11. Be3 {[%clk
00:20:31]} {[%emt 00:00:06]} b5 {[%clk 00:17:42]} {[%emt 00:00:39]} 12. Rc1
{[%clk 00:20:10]} {[%emt 00:00:26]} b4 {[%clk 00:17:14]} {[%emt 00:00:33]} 13.
Nb1 {[%clk 00:20:13]} {[%emt 00:00:02]} Bb7 {[%clk 00:17:08]} {[%emt 00:00:11]}
14. g4 {[%clk 00:20:02]} {[%emt 00:00:16]} c5 {[%clk 00:16:32]} {[%emt
00:00:41]} 15. Ng3 {[%clk 00:20:03]} {[%emt 00:00:04]} Ne8 {[%clk 00:15:46]}
{[%emt 00:00:51]} 16. f5 {[%clk 00:20:06]} {[%emt 00:00:02]} d5 {[%clk
00:12:44]} {[%emt 00:03:08]} 17. Bf4 {[%clk 00:19:17]} e5 {[%clk 00:12:38]}
{[%emt 00:01:06]} 18. Be3 dxe4 {[%clk 00:12:29]} 19. dxe4 {[%clk 00:18:56]}
{[%emt 00:00:09]} Rd8 {[%clk 00:12:27]} {[%emt 00:00:07]} 20. Qe2 {[%clk
00:18:42]} {[%emt 00:00:20]} Nb8 {[%clk 00:11:16]} {[%emt 00:01:15]} 21. g5
{[%clk 00:18:34]} {[%emt 00:00:13]} f6 {[%clk 00:10:46]} {[%emt 00:00:35]} 22.
h4 {[%clk 00:18:37]} {[%emt 00:00:01]} Nd7 {[%clk 00:09:04]} {[%emt 00:01:48]}
23. h5 {[%clk 00:18:26]} {[%emt 00:00:16]} Qc6 {[%clk 00:07:05]} {[%emt
00:02:05]} 24. hxg6 {[%clk 00:17:43]} {[%emt 00:00:47]} fxg5 {[%clk 00:06:18]}
{[%emt 00:00:52]} 25. gxh7+ {[%clk 00:16:11]} {[%emt 00:01:38]} Kxh7 {[%clk
00:05:34]} {[%emt 00:00:48]} 26. Bxg5 {[%clk 00:16:13]} {[%emt 00:00:03]} Ndf6
{[%clk 00:05:13]} {[%emt 00:00:26]} 27. Rcd1 {[%clk 00:15:38]} {[%emt
00:00:40]} Rxd1 {[%clk 00:05:00]} {[%emt 00:00:18]} 28. Rxd1 {[%clk 00:15:40]}
{[%emt 00:00:03]} Qc7 {[%clk 00:04:45]} {[%emt 00:00:20]} 29. Nd2 {[%clk
00:15:35]} {[%emt 00:00:10]} Rh8 {[%clk 00:04:49]} 30. Ndf1 {[%clk 00:12:29]}
{[%emt 00:03:10]} Kg8 {[%clk 00:04:49]} {[%emt 00:00:06]} 31. Ne3 {[%clk
00:12:30]} {[%emt 00:00:03]} Bh6 {[%clk 00:04:29]} {[%emt 00:00:26]} 32. Bxf6
{[%clk 00:10:44]} {[%emt 00:01:51]} Nxf6 {[%clk 00:04:33]} {[%emt 00:00:01]} 33.
Ng4 {[%clk 00:10:46]} {[%emt 00:00:03]} Ne8 {[%clk 00:03:52]} {[%emt 00:00:46]}
34. Nxh6+ {[%clk 00:09:21]} {[%emt 00:01:30]} Rxh6 {[%clk 00:03:55]} {[%emt
00:00:02]} 35. Qg4+ {[%clk 00:09:16]} {[%emt 00:00:09]} Kh8 {[%clk 00:03:42]}
{[%emt 00:00:19]} 36. Qg5 {[%clk 00:09:10]} {[%emt 00:00:09]} Kh7 {[%clk
00:02:25]} {[%emt 00:01:24]} 37. Nh5 {[%clk 00:06:41]} {[%emt 00:02:34]} Qf7
{[%clk 00:02:29]} 38. Ng3 {[%clk 00:05:25]} {[%emt 00:01:21]} Nf6 {[%clk
00:02:19]} {[%emt 00:00:15]} 39. Rd6 {[%clk 00:04:33]} {[%emt 00:00:55]} Qe7
{[%clk 00:01:19]} {[%emt 00:01:07]} 40. Re6 {[%clk 00:04:05]} {[%emt 00:00:33]}
Qd8 {[%clk 00:01:23]} 41. Bf3 {[%clk 00:02:16]} {[%emt 00:01:54]} Qd4+ {[%clk
00:01:19]} {[%emt 00:00:10]} 42. Kg2 {[%clk 00:02:20]} Qxb2+ {[%clk 00:01:20]}
{[%emt 00:00:04]} 43. Ne2 {[%clk 00:02:13]} {[%emt 00:00:12]} Bxe4 {[%clk
00:01:00]} {[%emt 00:00:25]} 44. Re7+ {[%clk 00:02:16]} {[%emt 00:00:01]} 1-0

[Event "MČR juniorů a juniorek v rapid šachu 2023"]
[Site "Czech Republic"]
[Date "2023.09.23"]
[Round "4.12"]
[White "Boff, Ondrej"]
[Black "Vilimek, Vit"]
[Result "0-1"]
[TimeControl "20 min + 5 sec per move"]
[WhiteFideId "23733950"]
[BlackFideId "23718218"]
[WhiteElo "1486"]
[BlackElo "1898"]

1. e4 {[%clk 00:19:55]} {[%emt 00:00:08]} c5 {[%clk 00:20:10]} {[%emt
00:00:09]} 2. Nf3 {[%clk 00:19:57]} {[%emt 00:00:01]} a6 {[%clk 00:20:14]}
{[%emt 00:00:02]} 3. c4 {[%clk 00:20:00]} {[%emt 00:00:02]} Nc6 {[%clk
00:20:13]} {[%emt 00:00:06]} 4. Nc3 {[%clk 00:19:59]} {[%emt 00:00:06]} g6
{[%clk 00:20:10]} {[%emt 00:00:08]} 5. d4 {[%clk 00:19:59]} {[%emt 00:00:04]}
cxd4 {[%clk 00:20:13]} {[%emt 00:00:03]} 6. Nxd4 {[%clk 00:20:02]} {[%emt
00:00:02]} Bg7 {[%clk 00:20:17]} 7. Be3 {[%clk 00:20:05]} {[%emt 00:00:03]} d6
{[%clk 00:19:58]} {[%emt 00:00:24]} 8. Be2 {[%clk 00:19:53]} {[%emt 00:00:17]}
Nf6 {[%clk 00:20:01]} {[%emt 00:00:03]} 9. O-O {[%clk 00:19:49]} {[%emt
00:00:09]} O-O {[%clk 00:20:04]} {[%emt 00:00:02]} 10. Rc1 {[%clk 00:19:44]}
{[%emt 00:00:09]} Nd7 {[%clk 00:20:06]} {[%emt 00:00:03]} 11. Qd2 {[%clk
00:19:33]} {[%emt 00:00:17]} Nc5 {[%clk 00:19:51]} {[%emt 00:00:19]} 12. Rfd1
{[%clk 00:19:17]} {[%emt 00:00:20]} Rb8 {[%clk 00:19:02]} {[%emt 00:00:56]} 13.
Nxc6 {[%clk 00:18:33]} {[%emt 00:00:49]} Bxc3 {[%clk 00:19:05]} {[%emt
00:00:02]} 14. Qxc3 {[%clk 00:17:56]} {[%emt 00:00:42]} Nxe4 {[%clk 00:19:02]}
{[%emt 00:00:10]} 15. Qb3 {[%clk 00:17:31]} {[%emt 00:00:30]} bxc6 {[%clk
00:18:06]} {[%emt 00:01:01]} 16. Qxb8 {[%clk 00:17:23]} {[%emt 00:00:12]} Qa5
{[%clk 00:18:10]} {[%emt 00:00:02]} 17. Qb3 {[%clk 00:17:12]} {[%emt 00:00:14]}
Bd7 {[%clk 00:18:13]} {[%emt 00:00:04]} 18. Bf3 {[%clk 00:17:02]} {[%emt
00:00:14]} Nf6 {[%clk 00:18:17]} {[%emt 00:00:02]} 19. c5 {[%clk 00:16:42]}
{[%emt 00:00:24]} d5 {[%clk 00:18:03]} {[%emt 00:00:19]} 20. Bd4 {[%clk
00:16:40]} {[%emt 00:00:06]} Ne8 {[%clk 00:17:55]} {[%emt 00:00:14]} 21. Re1
{[%clk 00:16:24]} {[%emt 00:00:21]} e6 {[%clk 00:17:52]} {[%emt 00:00:08]} 22.
Qb7 {[%clk 00:16:11]} {[%emt 00:00:17]} Qd8 {[%clk 00:17:51]} {[%emt 00:00:06]}
23. Qxa6 {[%clk 00:15:58]} {[%emt 00:00:19]} f6 {[%clk 00:17:52]} {[%emt
00:00:05]} 24. Bc3 {[%clk 00:15:11]} {[%emt 00:00:51]} e5 {[%clk 00:17:53]}
{[%emt 00:00:04]} 25. Ba5 {[%clk 00:15:14]} {[%emt 00:00:02]} Qe7 {[%clk
00:17:49]} {[%emt 00:00:09]} 26. b4 {[%clk 00:15:04]} {[%emt 00:00:15]} e4
{[%clk 00:17:40]} {[%emt 00:00:14]} 27. Bd1 {[%clk 00:14:49]} {[%emt 00:00:20]}
f5 {[%clk 00:17:39]} {[%emt 00:00:06]} 28. a4 {[%clk 00:14:42]} {[%emt
00:00:12]} f4 {[%clk 00:17:10]} {[%emt 00:00:34]} 29. Bf3 {[%clk 00:13:50]}
{[%emt 00:00:56]} Qg5 {[%clk 00:17:12]} {[%emt 00:00:04]} 30. Qe2 {[%clk
00:12:52]} {[%emt 00:01:02]} exf3 {[%clk 00:16:59]} {[%emt 00:00:19]} 31. Qxf3
{[%clk 00:12:25]} {[%emt 00:00:31]} Bg4 {[%clk 00:17:00]} {[%emt 00:00:05]} 32.
Qc3 {[%clk 00:11:31]} {[%emt 00:00:58]} f3 {[%clk 00:16:50]} {[%emt 00:00:16]}
33. Re5 {[%clk 00:08:26]} {[%emt 00:03:09]} Qh4 {[%clk 00:15:45]} {[%emt
00:01:12]} 34. Qe3 {[%clk 00:07:23]} {[%emt 00:01:05]} Nf6 {[%clk 00:11:39]}
{[%emt 00:04:12]} 35. Qg5 {[%clk 00:06:20]} {[%emt 00:01:08]} Qxg5 {[%clk
00:11:44]} 36. Rxg5 {[%clk 00:06:23]} {[%emt 00:00:02]} fxg2 {[%clk 00:11:47]}
{[%emt 00:00:02]} 37. Kxg2 {[%clk 00:06:05]} {[%emt 00:00:23]} Bf3+ {[%clk
00:10:18]} {[%emt 00:01:35]} 38. Kxf3 {[%clk 00:05:04]} {[%emt 00:01:06]} Ne4+
{[%clk 00:10:22]} {[%emt 00:00:01]} 39. Kg4 {[%clk 00:04:56]} {[%emt 00:00:10]}
h5+ {[%clk 00:10:26]} {[%emt 00:00:04]} 40. Rxh5 {[%clk 00:04:10]} {[%emt
00:00:51]} gxh5+ {[%clk 00:07:23]} {[%emt 00:03:09]} 41. Kxh5 {[%clk 00:03:52]}
{[%emt 00:00:22]} Ra8 {[%clk 00:03:20]} {[%emt 00:04:08]} 42. f4 {[%clk
00:02:40]} {[%emt 00:01:16]} Kf7 {[%clk 00:03:12]} {[%emt 00:00:15]} 43. Kg4
{[%clk 00:02:28]} {[%emt 00:00:15]} Kf6 {[%clk 00:02:50]} {[%emt 00:00:30]} 44.
Ra1 {[%clk 00:02:04]} {[%emt 00:00:28]} Nd2 {[%clk 00:01:41]} {[%emt 00:01:15]}
45. Bc7 {[%clk 00:01:43]} {[%emt 00:00:26]} Rg8+ {[%clk 00:01:45]} 46. Kh3
{[%clk 00:01:40]} {[%emt 00:00:07]} Kf5 {[%clk 00:01:18]} {[%emt 00:00:33]} 47.
Ra2 {[%clk 00:01:13]} {[%emt 00:00:31]} Ne4 {[%clk 00:00:34]} {[%emt 00:00:50]}
48. Be5 {[%clk 00:01:09]} {[%emt 00:00:08]} Rg6 {[%clk 00:00:15]} {[%emt
00:00:25]} 49. a5 {[%clk 00:00:57]} {[%emt 00:00:17]} d4 {[%clk 00:00:15]}
{[%emt 00:00:05]} 50. a6 {[%clk 00:00:46]} {[%emt 00:00:16]} Rg8 {[%clk
00:00:06]} {[%emt 00:00:14]} 51. a7 {[%clk 00:00:41]} {[%emt 00:00:10]} Ra8
{[%emt 00:00:03]} 52. Ra3 {[%clk 00:00:20]} {[%emt 00:00:24]} d3 {[%clk
00:00:10]} {[%emt 00:00:05]} 53. Kg2 {[%clk 00:00:14]} {[%emt 00:00:11]} d2
{[%clk 00:00:14]} {[%emt 00:00:01]} 54. Rd3 {[%clk 00:00:18]} Rxa7 {[%clk
00:00:18]} {[%emt 00:00:02]} 55. Kf3 {[%clk 00:00:13]} {[%emt 00:00:09]} Ra3
{[%clk 00:00:17]} {[%emt 00:00:06]} 0-1

[Event "MČR juniorů a juniorek v rapid šachu 2023"]
[Site "Czech Republic"]
[Date "2023.09.23"]
[Round "4.13"]
[White "Hosova, Sandra"]
[Black "Pressler, Tobias"]
[Result "0-1"]
[TimeControl "20 min + 5 sec per move"]
[WhiteFideId "397717"]
[BlackFideId "23715359"]
[WhiteElo "1682"]
[BlackElo "1859"]

1. d4 {[%clk 00:20:08]} {[%emt 00:00:01]} d5 {[%clk 00:20:09]} 2. Bf4 {[%clk
00:20:11]} {[%emt 00:00:01]} Nf6 {[%clk 00:20:13]} {[%emt 00:00:02]} 3. e3
{[%clk 00:20:13]} {[%emt 00:00:02]} g6 {[%clk 00:20:16]} {[%emt 00:00:02]} 4.
Be2 {[%clk 00:20:14]} {[%emt 00:00:04]} Bg7 {[%clk 00:20:09]} {[%emt 00:00:13]}
5. Nf3 {[%clk 00:20:14]} {[%emt 00:00:05]} c5 {[%clk 00:19:47]} {[%emt
00:00:27]} 6. Nc3 {[%clk 00:20:09]} {[%emt 00:00:10]} cxd4 {[%clk 00:19:45]}
{[%emt 00:00:07]} 7. exd4 {[%clk 00:20:12]} {[%emt 00:00:01]} O-O {[%clk
00:19:46]} {[%emt 00:00:05]} 8. Qd2 {[%clk 00:19:57]} {[%emt 00:00:19]} Nc6
{[%clk 00:19:34]} {[%emt 00:00:18]} 9. Ne5 {[%clk 00:19:46]} {[%emt 00:00:15]}
Qb6 {[%clk 00:15:12]} {[%emt 00:04:27]} 10. O-O-O {[%clk 00:19:44]} {[%emt
00:00:08]} Rd8 {[%clk 00:14:21]} {[%emt 00:00:57]} 11. f3 {[%clk 00:17:08]}
{[%emt 00:02:40]} Be6 {[%clk 00:13:32]} {[%emt 00:00:54]} 12. h4 {[%clk
00:16:12]} {[%emt 00:01:01]} h5 {[%clk 00:13:22]} {[%emt 00:00:15]} 13. g4
{[%clk 00:15:52]} {[%emt 00:00:24]} Rac8 {[%clk 00:13:26]} {[%emt 00:00:02]} 14.
Kb1 {[%clk 00:11:00]} {[%emt 00:04:57]} Nb4 {[%clk 00:12:59]} {[%emt 00:00:32]}
15. Rhg1 {[%clk 00:10:15]} {[%emt 00:00:49]} hxg4 {[%clk 00:12:38]} {[%emt
00:00:27]} 16. fxg4 {[%clk 00:10:11]} {[%emt 00:00:09]} Ne4 {[%clk 00:12:16]}
{[%emt 00:00:28]} 17. Qe3 {[%clk 00:08:27]} {[%emt 00:01:48]} Rxc3 {[%clk
00:11:55]} {[%emt 00:00:26]} 18. bxc3 {[%clk 00:07:50]} {[%emt 00:00:42]} Nd3+
{[%clk 00:11:58]} {[%emt 00:00:01]} 0-1